Cogmind - Beta 14 @@@ ROGUE MODE // 2024.12.27 @ 17:14:40 Player: xack Result: Self-destructed Performance ------------- Evolutions (2) 1000 Regions Visited (6) 1200 Robots Destroyed (37) 185 Value Destroyed (905) 905 Prototype IDs (34) 680 Alien Tech Used (0) 0 Bonus (500) 500 TOTAL SCORE: 4470 Bonus ------- Entered Garrisons 200 Aligned with FarCom 300 Cogmind --------- Core Integrity 141/550 Matter 8/300 Energy 85/100 System Corruption 9% Temperature Cool (0) Movement Treading (160) Location -8/Garrison Parts ------- > --- POWER (1) -------- (None) > --- PROPULSION (4) --- Light Treads Improved Treads > --- UTILITY (4) ------ Large Storage Unit Advanced Targeting Computer Improved Medium Armor Plating > --- WEAPON (2) ------- Enhanced Autogun > --- INVENTORY (15) --- Deuterium Engine Improved Treads Improved Treads Cryofiber Web Improved Signal Interpreter Enhanced Autogun Enhanced Autogun Slug Cannon Heavy Missile Launcher Improved Datajack Peak State ------------ > --- POWER ------------ Nuclear Core > --- PROPULSION ------- Flying Fortress v7 > --- UTILITY ---------- Large Storage Unit Advanced Targeting Computer Improved Medium Armor Plating Improved Medium Armor Plating > --- WEAPON ----------- Enhanced Autogun Enhanced Autogun > --- INVENTORY -------- Deuterium Engine Light Treads Improved Treads Improved Treads Improved Treads Cryofiber Web High-capacity Matter Pod Improved Signal Interpreter Improved Medium Armor Plating Hacking Suite Enhanced Autogun Slug Cannon Heavy Missile Launcher Heavy Missile Launcher Improved Datajack [Rating: 59] Favorites ----------- Power Ion Engine Engine Ion Engine Power Core Nuclear Core Propulsion Aluminum Leg Treads Light Treads Leg Aluminum Leg Hover Unit Aerolev Unit Flight Unit Flying Fortress v7 Utility Large Storage Unit Device Seismic Detector Storage Large Storage Unit Processor Advanced Targeting Computer Protection Improved Medium Armor Plating Weapon Light Cannon Energy Gun Precision Beam Rifle Ballistic Gun Enhanced Autogun Ballistic Cannon Light Cannon Launcher Heavy Missile Launcher Special Melee Weapon Improved Datajack Build | -11 -10 -10 -10 -9 -8 -8 ------- Run | Yrd Mat Min Exi Min Mat Gar Slots Evolved 4 | . . . . . 4 . Power . | . . . . . . . Propulsion 2 | . . . . . 2 . Utility 2 | . . . . . 2 . Weapon . | . . . . . . . Parts Attached 48 | 7 2 2 1 1 26 9 Power 3 | 1 . . . . 2 . Engine 2 | 1 . . . . 1 . Core 1 | . . . . . 1 . Reactor . | . . . . . . . Propulsion 7 | 2 . . . . 3 2 Treads 2 | . . . . . . 2 Leg 2 | 2 . . . . . . Wheel . | . . . . . . . Hover 1 | . . . . . 1 . Flight 2 | . . . . . 2 . Utility 15 | 2 . . 1 1 9 2 Device 5 | 1 . . . 1 3 . Storage 2 | 1 . . 1 . . . Processor 2 | . . . . . 2 . Hackware . | . . . . . . . Protection 6 | . . . . . 4 2 Artifact . | . . . . . . . Weapon 23 | 2 2 2 . . 12 5 Energy Gun 5 | 2 . . . . 3 . Energy Cannon . | . . . . . . . Ballistic Gun 3 | . . . . . 2 1 Ballistic Cannon 8 | . 2 1 . . 5 . Launcher 6 | . . 1 . . 2 3 Special Weapon . | . . . . . . . Impact Weapon . | . . . . . . . Slashing Weapon . | . . . . . . . Piercing Weapon . | . . . . . . . Special Melee Weapon 1 | . . . . . . 1 Unidentified Prototypes 3 | . . . . . 3 . Parts Lost 8 | . 1 . . . 2 5 Power 2 | . . . . . 1 1 Propulsion 1 | . . . . . . 1 Utility 3 | . . . . . 1 2 Weapon 2 | . 1 . . . . 1 Highest Loss Streak 5 | . 1 . . . 1 5 To Critical Strikes . | . . . . . . . Average Slot Usage (%) 86 | . 100 100 100 100 67 72 Engine 8 | . 14 14 14 14 2 . Core 3 | . . . . . 7 8 Leg 16 | . 28 28 28 28 . . Flight 3 | . . . . . 8 6 Device 9 | . 14 14 14 14 3 . Storage 11 | . 14 14 14 14 9 9 Processor 3 | . . . . . 7 9 Protection 5 | . . . . . 12 16 Energy Gun 8 | . 12 . . . 14 . Ballistic Gun 1 | . . . . . . 12 Ballistic Cannon 14 | . 15 28 28 28 3 . Peak Build Rating 59 | 7 8 8 11 13 59 59 Average Rating 26 | 5 7 8 9 13 53 49 On Entrance 15 | . 7 8 8 11 13 59 Naked Turns . | . . . . . . . Heaviest Build 51 | 14 17 17 32 32 47 51 Greatest Support 50 | 20 20 20 20 20 50 50 Greatest Overweight (x) 11 | . . . 1 1 11 1 Average Overweight (x) . | . . . . 1 . . Largest Inventory Capacity 15 | 8 8 8 15 15 15 15 Average Capacity 12 | 7 8 8 13 15 15 15 Most Carried 15 | 7 8 8 13 14 15 15 Average Carried 11 | 5 7 8 10 13 14 13 Final Capacity 15 | 8 8 8 15 15 15 15 Final Carried 15 | 7 8 8 13 14 15 10 Class Distribution -------------------- 91% | Mutant 5% | Skirmisher Dominant Class ---------------- Mutant | -10/Materials Mutant | -10/Mines Mutant | -10/Exiles Skirmisher | -9/Mines Mutant | -8/Materials Mutant | -8/Garrison Resources | -11 -10 -10 -10 -9 -8 -8 ----------- Run | Yrd Mat Min Exi Min Mat Gar Matter Collected 927 | 244 127 96 56 . 316 88 Remotely . | . . . . . . . Salvage Created 598 | 50 193 21 . . 240 94 Parts 55 | 9 20 4 . . 14 8 Haulers Intercepted 1 | . . . . . 1 . Recyclers Shooed 1 | . . . . . 1 . Parts Field Recycled . | . . . . . . . Retrieved Matter . | . . . . . . . Parts Self-Destructed . | . . . . . . . Prevented . | . . . . . . . Kills | -11 -10 -10 -10 -9 -8 -8 ------- Run | Yrd Mat Min Exi Min Mat Gar Combat Hostiles Destroyed 28 | . 9 3 . . 7 9 Guns 6 | . 5 . . . . 1 Cannons 9 | . 4 3 . . 2 . AOE 13 | . . . . . 5 8 Classes Destroyed 9 | 1 2 . . . 6 . Builder 1 | . . . . . 1 . Tunneler 3 | 3 . . . . . . Hauler 1 | . . . . . 1 . Recycler 2 | . . . . . 2 . Operator 1 | . . . . . 1 . Watcher 1 | . . . . . 1 . Swarmer 20 | . 6 3 . . 4 7 Grunt 7 | . 3 . . . 2 2 Sentry 1 | . . . . . 1 . Best Kill Streak 9 | 2 3 3 . . 9 6 Combat Bots Only 6 | . 3 3 . . 6 6 Max Kills in Single Turn 3 | 1 1 1 . . 3 3 Gunslinging . | . . . . . . . Exploded 3 | . . . . . 2 3 Melee . | . . . . . . . Uniques/NPCs Destroyed . | . . . . . . . Combat | -11 -10 -10 -10 -9 -8 -8 -------- Run | Yrd Mat Min Exi Min Mat Gar Hostile Shots Fired 264 | . 33 22 . . 46 163 Missed 92 | . 8 2 . . 19 63 Damage Taken 2903 | . 238 197 . . 896 1572 Core 472 | . 47 16 . . 199 210 Absorbed by Shields . | . . . . . . . Core Remaining (%) 87 | 100 . . . 74 . . Volleys Fired 85 | 6 27 9 . . 31 12 Largest 2 | 2 2 2 . . 2 2 Hottest 111 | 80 80 70 . . 111 50 Shots Fired 150 | 12 54 16 . . 53 15 Gun 66 | 12 21 . . . 23 10 Cannon 71 | . 33 14 . . 24 . Launcher 13 | . . 2 . . 6 5 Special . | . . . . . . . Kinetic 81 | . 33 14 . . 24 10 Thermal 20 | 6 3 . . . 11 . Explosive 13 | . . 2 . . 6 5 Electromagnetic 36 | 6 18 . . . 12 . Robot Hit Streak 7 | 1 7 4 . . 6 4 Robot Miss Streak 7 | 4 5 7 . . 3 1 Penetration Max . | . . . . . . . Secondary Targets . | . . . . . . . Shots Hit Robots 84 | 4 32 7 . . 29 12 Core Hits 58 | 3 13 2 . . 21 19 Critical Kills . | . . . . . . . Critical Parts Destroyed 1 | . . . . . 1 . Critical Strikes 4 | . 1 . . . 3 . Burn 1 | . . . . . 1 . Destroy 1 | . . . . . 1 . Blast 1 | . 1 . . . . . Corrupt 1 | . . . . . 1 . Melee Attacks 3 | . . . . . . 3 Impact . | . . . . . . . Slashing . | . . . . . . . Piercing . | . . . . . . . Sneak Attacks . | . . . . . . . Combat Hostiles . | . . . . . . . Follow-up Attacks . | . . . . . . . Damage Inflicted 3298 | 48 493 117 . . 1323 1317 Guns 583 | 48 191 . . . 248 96 Cannons 720 | . 302 117 . . 301 . Explosions 1993 | . . . . . 774 1219 Melee . | . . . . . . . Ramming 2 | . . . . . . 2 Kinetic 816 | . 302 117 . . 301 96 Thermal 340 | 33 21 . . . 286 . Explosive 1843 | . . . . . 624 1219 Electromagnetic 297 | 15 170 . . . 112 . Impact . | . . . . . . . Slashing . | . . . . . . . Piercing . | . . . . . . . Highest Corruption 8 | . . . . . 4 8 Average Corruption 4 | . . . . . 4 4 Corruption Purged . | . . . . . . . Corruption Blocked . | . . . . . . . Effects 24 | . . . . . 20 4 Message Errors 8 | . . . . . 6 2 Matter Fused 9 | . . . . . 8 1 Energy Discharges 3 | . . . . . 3 . Data Loss (minor) 2 | . . . . . 1 1 Data Loss (major) 1 | . . . . . 1 . Weapon Failures 1 | . . . . . 1 . Overload Shots . | . . . . . . . Overflow Damage 141 | . 2 12 . . 56 71 Projectiles 14 | . 2 12 . . . . Explosions 127 | . . . . . 56 71 Melee . | . . . . . . . Knockbacks 9 | . 7 . . . 2 . Impact . | . . . . . . . Kinetic 7 | . 6 . . . 1 . Secondary 2 | . 1 . . . 1 . Self-Inflicted Damage 381 | . . 47 . . 245 89 Shots 8 | . . 2 . . 4 2 Rammed 2 | . . . . . . 2 Targets Rammed 2 | . . . . . . 2 Kicked . | . . . . . . . Crushed . | . . . . . . . Highest Temperature 401 | 54 137 63 . . 401 62 Average Temperature 66 | 23 39 29 . . 110 23 Received Heat Transfer 585 | . 81 . . . 108 396 Effects 2 | . . . . . 2 . Shutdowns 1 | . . . . . 1 . Short Circuit 1 | . . . . . 1 . Siege Activations . | . . . . . . . Robots Corrupted . | . . . . . . . Combat Hostiles . | . . . . . . . Parts Fried . | . . . . . . . Impact Corruptions . | . . . . . . . Robots Melted . | . . . . . . . Combat Hostiles . | . . . . . . . Parts Melted . | . . . . . . . Heat Transferred 645 | 75 50 . . . 520 . Parts Sabotaged . | . . . . . . . Parts Stolen . | . . . . . . . Parts Stripped . | . . . . . . . Power Chain Reactions 1 | . . . . . 1 . Alert | -11 -10 -10 -10 -9 -8 -8 ------- Run | Yrd Mat Min Exi Min Mat Gar Peak Influence 328 | 15 195 166 . . 321 328 Initial 70 | . 9 70 . . . . Average 92 | 5 90 151 . . 99 154 Maximum Alert Level 1 | . . . . . 1 1 Low Security (%) 84 | 100 100 100 . 100 67 70 Level 1 15 | . . . . . 32 29 Level 2 . | . . . . . . . Level 3 . | . . . . . . . Level 4 . | . . . . . . . Level 5 . | . . . . . . . High Security . | . . . . . . . Max Security . | . . . . . . . Squads Dispatched 3 | . 2 . . . 1 . Investigation 2 | . 1 . . . 1 . Extermination . | . . . . . . . Reinforcement 1 | . 1 . . . . . Assault . | . . . . . . . Garrison . | . . . . . . . Intercept . | . . . . . . . Searches Triggered . | . . . . . . . Construction Impeded . | . . . . . . . Haulers Reinforced . | . . . . . . . Active Scanning Responses . | . . . . . . . Cargo Convoy Interrupts . | . . . . . . . Stealth | -11 -10 -10 -10 -9 -8 -8 --------- Run | Yrd Mat Min Exi Min Mat Gar Distress Signals 3 | . 3 . . . . . Communications Jammed . | . . . . . . . Distress Signals . | . . . . . . . Times Spotted 54 | . 18 3 . . 10 23 Peak Tracking Total 15 | . 8 3 . . 4 15 Tactical Retreats 4 | . 3 . . . . 1 Traps | -11 -10 -10 -10 -9 -8 -8 ------- Run | Yrd Mat Min Exi Min Mat Gar Traps Triggered 1 | . 1 . . . . . Indirectly . | . . . . . . . Trap Hack Attempts . | . . . . . . . Triggered . | . . . . . . . Disarmed . | . . . . . . . Reprogrammed . | . . . . . . . Reused . | . . . . . . . Traps Extracted . | . . . . . . . Installed . | . . . . . . . Triggered . | . . . . . . . Machines | -11 -10 -10 -10 -9 -8 -8 ---------- Run | Yrd Mat Min Exi Min Mat Gar Machines Disabled 8 | . 2 1 . . 4 1 Max in Single Turn 2 | . 1 1 . . 2 1 Garrison Relay 1 | . . . . . . 1 Machines Repaired . | . . . . . . . Machines Dismantled . | . . . . . . . Machines Sabotaged . | . . . . . . . Overloaded Fab Kills . | . . . . . . . Hacking | -11 -10 -10 -10 -9 -8 -8 --------- Run | Yrd Mat Min Exi Min Mat Gar Machines Accessed 10 | . 4 . 1 . 5 . Terminals 8 | . 4 . . . 4 . Fabricators . | . . . . . . . Repair Stations . | . . . . . . . Recycling Units . | . . . . . . . Scanalyzers . | . . . . . . . Garrison Access 1 | . . . . . 1 . Total Hacks 26 | . 11 . 1 . 14 . Successful 8 | . 2 . 1 . 5 . Failed 18 | . 9 . . . 9 . Catastrophic 3 | . 3 . . . . . Database Lockouts . | . . . . . . . Manual 11 | . 6 . 1 . 4 . Terminals 23 | . 11 . . . 12 . Fabricators . | . . . . . . . Repair Stations . | . . . . . . . Recycling Units . | . . . . . . . Scanalyzers . | . . . . . . . Garrison Access 2 | . . . . . 2 . Terminal Hacks 7 | . 2 . 1 . 4 . Prototype ID Bank 4 | . 2 . . . 2 . Unreport Threat 1 | . . . . . 1 . Locate Traps 1 | . . . . . 1 . Derelict Proto ID Bank 1 | . . . 1 . . . Fabricator Hacks . | . . . . . . . Repair Station Hacks . | . . . . . . . Recycling Unit Hacks . | . . . . . . . Scanalyzer . | . . . . . . . Garrison Access Hacks 1 | . . . . . 1 . Unlock Access 1 | . . . . . 1 . Unauthorized Hacks . | . . . . . . . Terminals . | . . . . . . . Fabricators . | . . . . . . . Repair Stations . | . . . . . . . Recycling Units . | . . . . . . . Scanalyzers . | . . . . . . . Garrison Access . | . . . . . . . Data Cores Recovered . | . . . . . . . Used . | . . . . . . . Hacking Detections 8 | . 4 . . . 4 . Full Trace Events 1 | . . . . . 1 . Feedback Events . | . . . . . . . Feedback Blocked . | . . . . . . . Robot Schematics Acquired . | . . . . . . . Robots Built . | . . . . . . . Authchips . | . . . . . . . Time . | . . . . . . . Total Robot Build Rating . | . . . . . . . Part Schematics Acquired . | . . . . . . . Parts Built . | . . . . . . . Authchips . | . . . . . . . Time . | . . . . . . . Total Part Build Rating . | . . . . . . . Parts Repaired . | . . . . . . . Time . | . . . . . . . Parts Recycled . | . . . . . . . Recycled Matter . | . . . . . . . Retrieved Matter . | . . . . . . . Retrieved Components . | . . . . . . . Parts Scanalyzed . | . . . . . . . Part Schematics Acquired . | . . . . . . . Parts Damaged . | . . . . . . . Bothacking | -11 -10 -10 -10 -9 -8 -8 ------------ Run | Yrd Mat Min Exi Min Mat Gar Used RIF Installer . | . . . . . . . Robots Hacked . | . . . . . . . Non-combat . | . . . . . . . Combat . | . . . . . . . Robot Hacks Applied . | . . . . . . . Relay Couplers Released 4 | . . . . . . 4 Machine Destruction 4 | . . . . . . 4 Fabnet Peak Effective % . | . . . . . . . Robots Rewired . | . . . . . . . Allies Hacked . | . . . . . . . Hacks Repelled . | . . . . . . . Allies | -11 -10 -10 -10 -9 -8 -8 -------- Run | Yrd Mat Min Exi Min Mat Gar Total Allies . | . . . . . . . Largest Group . | . . . . . . . Highest-Rated Group . | . . . . . . . Highest-Rated Ally . | . . . . . . . Total Orders . | . . . . . . . Ally Attacks . | . . . . . . . Total Damage . | . . . . . . . Kills . | . . . . . . . Allies Corrupted . | . . . . . . . Allies Melted . | . . . . . . . Intel | -11 -10 -10 -10 -9 -8 -8 ------- Run | Yrd Mat Min Exi Min Mat Gar Robot Analysis Total . | . . . . . . . Derelict Logs Recovered . | . . . . . . . Drone Launches . | . . . . . . . Drone Recoveries . | . . . . . . . Exploration | -11 -10 -10 -10 -9 -8 -8 ------------- Run | Yrd Mat Min Exi Min Mat Gar Turns Passed 2420 | 124 588 134 478 126 814 156 Spaces Moved 1724 | 79 336 89 287 66 707 160 Core 10 | 9 . . . . 1 . Treads 14 | . . . . . . 14 Legs 848 | 70 336 89 287 66 . . Wheels . | . . . . . . . Hover . | . . . . . . . Flight 852 | . . . . . 706 146 Fastest Speed 50 | 50 120 120 120 190 50 50 Average Speed 96 | 112 120 120 165 190 50 66 Slowest Speed 600 | 120 120 120 190 190 600 240 Overloaded Moves . | . . . . . . . Propulsion Burnouts . | . . . . . . . Robots Hopped 6 | . . . . . 5 1 Cave-ins Triggered 1 | . . . . . 1 . Exploration Rate (%) 34 | 7 49 27 66 19 41 31 Regions Visited 6 Branch Regions 3 Pre-discovered Areas . | . . . . . . . Known Exits Taken 1 | . . . . . 1 . Unknown Exits Taken 5 | 1 1 1 1 1 . . Scrap Searched 1 | . . 1 . . . . Spaces Dug 22 | . . 22 . . . . Terrain Destroyed 151 | . . 22 . . 88 41 Melee . | . . . . . . . Projectile 5 | . . . . . 5 . AOE 146 | . . 22 . . 83 41 Terrain Rammed . | . . . . . . . Walls Destroyed . | . . . . . . . Machines Disabled . | . . . . . . . Actions | -11 -10 -10 -10 -9 -8 -8 --------- Run | Yrd Mat Min Exi Min Mat Gar Total 2327 | 100 470 99 290 67 1108 193 Wait 393 | . 95 . . . 297 1 Move 1706 | 78 335 88 286 65 696 158 Hop 6 | . . . . . 5 1 Pick Up 45 | 9 6 . 2 1 25 2 Fast Attach 13 | 5 1 . . . 7 . Attach 13 | 2 1 . . . 4 6 Detach 3 | . . . . . 2 1 Swap 24 | . . 2 1 1 15 5 Drop 34 | . 5 . 1 . 26 2 Fire 85 | 6 27 9 . . 31 12 Melee 3 | . . . . . . 3 Ram . | . . . . . . . Kick . | . . . . . . . Crush 2 | . . . . . . 2 Escape Stasis . | . . . . . . . Rewire . | . . . . . . . Trap . | . . . . . . . Miscellaneous . | . . . . . . . Route ------- -11/Scrapyard -10/Materials (discovered 3 exits: [*Mat x2] / [*Min]) -10/Mines -10/Exiles -9/Mines -8/Materials (discovered 2 exits: [*Sto] / Gar) -8/Garrison History --------- Turn | Location | Event 15 | -11/Scrapyard | Discovered new exit (range 14) 125 | -11/Scrapyard | Entered Materials 312 | -10/Materials | Build established: Mutant 576 | -10/Materials | Discovered new exit (range 15) 646 | -10/Materials | Discovered new exit (range 15) 670 | -10/Materials | Discovered new exit (range 15) 713 | -10/Materials | Entered Mines 714 | -10/Mines | Assembled infested the area 763 | -10/Mines | Met 8R-AWN 842 | -10/Mines | Discovered new exit (range 5) 847 | -10/Mines | Entered Exiles 877 | -10/Exiles | Welcomed by 8R-AWN 910 | -10/Exiles | Met EX-HEX 1041 | -10/Exiles | Met EX-BIN 1062 | -10/Exiles | Aligned with FarCom system 1064 | -10/Exiles | Given EX-Vault access code 1107 | -10/Exiles | Opened EX-Vault 1119 | -10/Exiles | Found Flying Fortress v7 1160 | -10/Exiles | Warned to stay clear of 0b10 Research branches 1217 | -10/Exiles | Met EX-DEC 1302 | -10/Exiles | Discovered new exit (range 14) 1325 | -10/Exiles | Left Exiles lab with Flying Fortress v7 1325 | -10/Exiles | Entered Mines 1424 | -9/Mines | A weapon hastily lodged in a ceiling crevice suddenly fell to the ground 1442 | -9/Mines | Discovered new exit (range 6) 1451 | -9/Mines | Entered Materials 1451 | -8/Materials | Evolved 4 slots: Propulsion x2, Utility x2 1464 | -8/Materials | Discovered new exit (range 14) 1555 | -8/Materials | Crushed by falling debris 1826 | -8/Materials | Identified exit to Garrison 2265 | -8/Materials | Entered Garrison 2289 | -8/Garrison | Triggered checkpoint 2311 | -8/Garrison | Garrison Relay disabled 2341 | -8/Garrison | Triggered checkpoint 2345 | -8/Garrison | Triggered checkpoint 2383 | -8/Garrison | Core integrity fell below 50% 2421 | -8/Garrison | Self-destructed Last Messages --------------- 02365_ S-10 Pest destroyed. 02375_ Destroyed Flight Unit. 02375_ S-10 Pest destroyed. 02376_ The unstable cave ceiling collapses. 02377_ G-50 Soldier destroyed. 02377_ Destroyed Lgt. Ion Engine. 02377_ Destroyed Flight Unit. 02377_ S-10 Pest destroyed. 02377_ Destroyed Flight Unit. 02377_ G-47 Trooper destroyed. 02378_ Flying Fortress v7 destroyed. 02382_ Critical hit (Burn: +37). 02395_ Imp. Medium Armor Plating destroyed. 02398_ /XK 02415_ Nuclear Core destroyed. 02419_ Acquired Relay Coupler [Grunt]. 02420_ Relay Coupler [Grunt] fries itself. 02421_ Hvy. Missile Launcher destroyed. Map ----- +----------------------------------------------------+ | ?????????????????????????????????????????????????? | | ?????????????????????????????????????????????????? | | ?????????????????????????????????????????????????? | | ?????????????????????????????????????????????????? | | ?????????????????????????????????????????????????? | | ?????????????????????????????????????????????????? | | ?????????????????????????????????????????????????? | | ?????????????????????????????????????????????????? | | ?????????????????????????????????????????????????? | | ?????????????????????????????????????????????????? | | ???????#####?????????????????????????????????????? | | ???????# #"#?????????????????????????????????????? | | ???????#!!"#?????????????????????????????????????? | | ???????# ! #?????????????????????????????????????? | | ???????# !"#?????????????????????????????????????? | | ???????# #"#???????#?????????????????????????????? | | ???????# ###???????# ????????????????????????????? | | ???????# ##????????# ????????????????????????????? | | ???????# ##???????# ????????????????????????????? | | ???????# ##???????# ????????????????????????????? | | ?????### ##???????# ??????###?##????????????????? | | ###### #???????# ?????# #? #????????????????? | | #???????# ????p# #!!#????????????????? | | ###### #???????# ??#### #+##????????????????? | | #???###* ##???????# ??#!pggp!!#????????????????? | | #?????# ######???# ??#@ # # !#????????????????? | | ####### ## # #???# ######g####????????????????? | | #??##++ #####g############ #?????? | | ########## #### gg ????? | | #????????# ### #?????? | | #????????#####?# # ###################???????? | | #??????????????# % ?????????????????????????? | | #???????###????# # ?????????????????????????? | | #??????? #????# # =s #????????????????????????? | | #??#????# #????# ## ##????????????????????????? | | #??# ##?# #?#### # #?????????????????????????? | | #??# # ## ### # % #?????????????????????????? | | #??# # # % #?????????????????????????? | | #### % = #?????????????????????????? | | ! *%[ #?????????????????????????? | | % #?????????????????????????? | | ##### ## #?????????????????????????? | | ????# ### # #?????????????????????????? | | ????#?? % ????????????????????????? | | ??????# ! #???????????????????????? | | ??????# #???????????????????????? | | ??????# #???????????????????????? | | ??????### ## ## ###???????????????????????? | | ????????# ## #? #?????????????????????????? | | ????????# % #?????????????????????????? | +----------------------------------------------------+ Best States ------------- Heat Dissipation 31 Energy Generation 14 Energy Capacity 250 Matter Stores 300 Matter Capacity 300 Sight Range 16 Terrain Scan Range 16 Terrain Scan Density 10 Base Temperature (-) 100 Armor Coverage 450 Evasion (%) 60 Targeting Accuracy 8 Recoil Reduction 2 Item Schematics ----------------- None Robot Schematics ------------------ None Fabricated ------------ Nothing Alien Tech Used ----------------- None Achievements -------------- None Challenges ------------ None Game ------ Seed FocalBattleAnalyzer Manual? 0 Play Time 00:46:49 Cumulative 44.0 hours Start 2024.12.27 @ 16:26:46 End 2024.12.27 @ 17:14:40 Sessions 1 Manual Loads 0 Difficulty Rogue Special Mode None Game No. 26 Rogue 26 Adventurer 0 Explorer 0 Win Type - Total 0 Types 0/0/0/0/0/0/0/0/0 Lore% 16 Gallery% 29 Achievement% 27 Wizard Run 0 Options --------- Layout 1 ASCII 0 Keyboard 0 Movement Mouse Keybinds 0 Fullscreen 1 Font 32/Smallcaps Map View 50x35 Zoom Use 0% Tactical HUD 1 Map Filters NONE Filters NONE Steam 1 RUN: e62bebe2-e33b-42fe-be8a-6c347434ec3f